[Event "Israeli Championship 2022"]
[Site "Yosiah Arad"]
[Date "2022.12.05"]
[Round "1.11"]
[White "Dvoirys, Semen I."]
[Black "Poleg, Matan"]
[Result "1-0"]
[ECO "B48"]
[WhiteElo "2461"]
[BlackElo "2291"]
[Annotator "TA"]
[PlyCount "55"]
[EventDate "2022.12.05"]
[EventType "swiss"]
[EventCountry "ISR"]
[SourceTitle "playchess.com"]
[Source "ChessBase"]
[SourceQuality "1"]
[TimeControl "40/5400+30:1800+30"]

{[%evp 18,55,19,0,0,0,0,0,0,-21,-18,-22,0,0,0,0,0,0,0,0,0,0,0,0,0,0,7,0,11,14,6,10,164,154,341,338,341,334,995,975]} 1. e4 {[%emt 0:00:04]} c5 {[%emt 0:01:00]} 2. Nf3 {[%emt 0:00:10]} e6 {[%emt 0:00:18]} 3. d4 {[%emt 0:00:19]} cxd4 {[%emt 0:00:14]} 4. Nxd4 {[%emt 0:00:04]} Nc6 {[%emt 0:00:21]} 5. Nc3 {[%emt 0:00:10]} Qc7 {[%emt 0:00:30]} 6. Be3 {[%emt 0:00:36]} a6 {[%emt 0:00:30]} 7. Bd3 {[%emt 0:01:55]} Nf6 {[%emt 0:01:45]} 8. Qe2 {[%emt 0:03:15]} b5 {[%emt 0:03:53]} 9. O-O {[%emt 0:02:15]} Bb7 {[%emt 0:01:55]} 10. f4 {[%emt 0:01:09]} Nxd4 {[%emt 0:05:13] B48: Sicilian: Taimanov: 5 Nc3 Qc7 6 Be3 a6 without Be2.} 11. Bxd4 {[%emt 0:00:05]} Bc5 {[%emt 0:00:07] Inhibits e5.} 12. Bxc5 {[%emt 0:11:37]} Qxc5+ {[%emt 0:00:06] The position is equal.} 13. Kh1 {[%emt 0:00:02]} (13. Rf2 $5 {[%cal Re4e5]}) 13... b4 {[%emt 0:06:18] Against e5} 14. Nb1 {[%emt 0:09:07]} d5 {[%emt 0:07:24][%cal Rd5e4]} 15. e5 {[%emt 0:00:21]} Ne4 {[%emt 0:00:23]} 16. Nd2 {[%emt 0:00:09]} O-O {[%emt 0:08:01][%cal Bh8f8,Bf8d8,Bd8d5][%mdl 32] [#]} 17. Nxe4 $146 {[%emt 0:01:33]} ({Predecessor:} 17. a3 Rfd8 18. Nb3 Qb6 19. axb4 Qxb4 20. Na5 Ra7 21. c3 Qb6 22. Bxe4 dxe4 23. Nc4 {1-0 (49) Golubovic,B (2458)-Gostisa,L (2427) Bled 2001}) 17... dxe4 {[%emt 0:00:05]} 18. Bxe4 {[%emt 0:00:06]} Bxe4 {[%emt 0:00:06]} 19. Qxe4 {[%emt 0:00:03]} Rac8 {[%emt 0:00:07]} 20. Rac1 $36 {[%emt 0:20:52][%mdl 2048] White is pushing.} Rfd8 {[%emt 0:05:28]} 21. f5 {[%emt 0:47:08]} Rd5 22. Rce1 (22. fxe6 {feels hotter.} fxe6 23. c4 Rxe5 24. Qb7) 22... Qxc2 23. fxe6 fxe6 (23... Qxe4 $2 24. exf7+ (24. Rxe4 fxe6 25. Rxb4 Rxe5 $11) 24... Kf8 25. Rxe4 $18) 24. Qxb4 {[%emt 0:00:00] And now Qb7 would win.} Qc5 $2 (24... Rd2 $11 {and Black stays safe.}) 25. Qb7 $18 {[%emt 0:00:00]} Rf8 {[#] Prevents Qf7+.} (25... Qc7 $16 26. Qxa6 Qc6) 26. Rxf8+ $1 {[%emt 0:00:00]} ({Weaker is} 26. Qxa6 Rxe5 27. a4 Rxe1 28. Rxe1 e5 29. Qe6+ Kh8 $16) 26... Qxf8 27. Qxa6 {[%emt 0:00:00]} Qf5 (27... Qe7 28. a4 h6) 28. Rf1 {[%emt 0:00:00] Weighted Error Value: White=0.03 (flawless) /Black=0.45} 1-0

[Event "Israeli Championship 2022"]
[Site "Yosiah Arad"]
[Date "2022.12.05"]
[Round "1.12"]
[White "Levitan, Tal"]
[Black "Rozen, Eytan"]
[Result "1-0"]
[ECO "B51"]
[WhiteElo "2243"]
[BlackElo "2459"]
[Annotator "TA"]
[PlyCount "107"]
[EventDate "2022.12.05"]
[EventType "swiss"]
[EventCountry "ISR"]
[SourceTitle "playchess.com"]
[Source "ChessBase"]
[SourceQuality "1"]
[TimeControl "40/5400+30:1800+30"]

{[%evp 9,107,19,29,31,33,36,33,9,38,33,40,37,36,33,59,47,64,56,64,73,63,61,55,53,79,59,94,98,117,103,114,100,106,104,130,92,150,163,133,127,188,160,201,184,227,231,224,225,246,195,187,184,185,184,249,250,243,243,264,264,264,264,270,270,283,290,336,336,336,336,336,336,336,336,350,350,350,350,466,320,573,573,562,541,495,495,1420,1374,1561,1068,5243,5236,5236,5212,29980,29981,29980,5117,4618,1495]} 1. e4 {[%emt 0:00:04]} c5 {[%emt 0:00:34]} 2. Nf3 {[%emt 0:00:40]} d6 {[%emt 0:00:48]} 3. Bb5+ {[%emt 0:00:12]} Nd7 {[%emt 0:00:13]} 4. a4 {[%emt 0:01:39]} Ngf6 {[%emt 0:01:42]} 5. Nc3 {[%emt 0:00:46]} g6 {[%emt 0:01:29]} 6. a5 {[%emt 0:02:09] B51: Sicilian: Moscow Variation (3 Bb5+) without 3...Bd7.} Bg7 {[%emt 0:02:54]} 7. O-O {[%emt 0:06:34]} O-O {[%emt 0:00:49]} 8. d3 {[%emt 0:12:58] [#] White is slightly better.} Qc7 $146 {[%emt 0:04:52]} (8... a6 $5 {[%cal Ra6b5]} 9. Bc4 Ng4 $11) ({Predecessor:} 8... a6 9. Bc4 b5 10. axb6 Nxb6 11. Bb3 a5 12. Re1 a4 13. Ba2 Bg4 14. h3 Bxf3 15. Qxf3 {1-0 (48) Nihal,S (2652)-Matlakov,M (2674) Chess.com INT 2022}) 9. Bf4 {[%emt 0:06:47]} Ne5 {[%emt 0:01:58]} 10. Nxe5 {[%emt 0:05:56]} dxe5 {[%emt 0:00:03]} 11. Be3 {[%emt 0:03:36]} Rd8 {[%emt 0:03:33]} 12. Qe2 {[%emt 0:04:17]} Be6 {[%emt 0:01:07]} 13. Bc4 {[%emt 0:00:49]} Bxc4 {[%emt 0:00:43]} 14. dxc4 {[%emt 0:00:02]} e6 {[%emt 0:00:42]} 15. f3 {[%emt 0:03:42]} a6 {[%emt 0:06:36]} 16. b3 {[%emt 0:18:21]} Bf8 {[%emt 0:04:39]} 17. Qf2 {[%emt 0:02:04]} (17. Bg5 $5 {[%cal Rg5f6]} Be7 18. Bd2 $14) 17... Rd4 {[%emt 0:11:45]} 18. Bxd4 {[%emt 0:05:45]} exd4 {[%emt 0:01:01]} 19. Ne2 {[%emt 0:01:53]} Bh6 {[%emt 0:00:36] Threatens to win with ...Be3.} 20. Qh4 {[%emt 0:00:26]} Be3+ {[%emt 0:00:36]} 21. Kh1 {[%emt 0:00:05]} Nh5 {[%emt 0:02:54]} 22. f4 {[%emt 0:05:10]} Qc6 (22... Bd2 $142) 23. f5 $16 {[%emt 0:00:30]} exf5 24. exf5 {[%emt 0:00:30]} Re8 (24... Kg7 $16 25. c3 d3) 25. Ng3 $18 {[%emt 0:00:30]} Nxg3+ 26. Qxg3 {[%emt 0:00:30]} Qe4 27. fxg6 {[%emt 0:00:30]} hxg6 28. Qc7 {[%emt 0:00:30]} f5 29. Rf3 {[%emt 0:00:30]} Qe5 30. Qxe5 {[%emt 0:00:30]} Rxe5 {[%mdl 4096] Endgame KRR-KRB} 31. Re1 {[%emt 0:00:30]} Re4 (31... Kg7 $142 32. Re2 Kf6) 32. g3 {[%emt 0:00:30]} Kg7 33. Kg2 {[%emt 0:00:30]} Bd2 {[#]} 34. Rxe4 {[%emt 0:00:30]} fxe4 {KR-KB} 35. Rf1 {[%emt 0:00:30]} e3 {[%cal Oe3e2] ...e2! is the strong threat.} 36. Kf3 {[%emt 0:00:30] Inhibits e2.} Bxa5 37. Ke2 {[%emt 0:00:30]} Bc3 38. Rf4 {[%emt 0:00:30]} b5 39. cxb5 {[%emt 0:00:30]} axb5 40. Re4 {[%emt 0:00:30]} Kf7 41. Kd3 {[%emt 0:30:30]} Bb4 42. Re5 {[%emt 0:00:30]} Kf6 43. Re8 {[%emt 0:00:30]} g5 44. h3 {[%emt 0:00:30]} g4 $2 (44... Bc3 45. Rc8 Bb4 46. Rc6+ Kf5) 45. hxg4 {[%emt 0:00:30]} Kg5 46. Rg8+ {[%emt 0:00:30]} Kf6 47. Ke2 {[%emt 0:00:30]} c4 (47... Bc3 $142 48. Rb8 b4) 48. Rb8 {[%emt 0:00:30]} Bd6 49. Rb6 {[%emt 0:00:30]} cxb3 50. cxb3 {[%emt 0:00:30]} (50. Rxd6+ Ke5 51. Rc6 Kd5 $19) 50... Ke5 51. Kd3 {[%emt 0:00:30]} ({And not} 51. Rxb5+ Ke4 52. Rb6 d3+ 53. Kd1 Bxg3 54. Re6+ Kf4 $11) 51... b4 52. g5 {[%emt 0:00:30]} Bf8 53. g6 {[%emt 0:00:30]} (53. Rb5+ $142 Ke6 54. Rb7 Kd5 55. g6 e2 56. Kxe2 Kc6 57. Rh7 Kb6 58. g7) 53... Kf5 {[#]} 54. Rxb4 $3 {[%emt 0:00:30][%mdl 512] Weighted Error Value: White=0.06 (flawless) /Black=0.41} 1-0

[Event "Israeli Championship 2022"]
[Site "Yosiah Arad"]
[Date "2022.12.05"]
[Round "1.13"]
[White "Tzidkiya, Yeshaayahu"]
[Black "Barak, Gil"]
[Result "1-0"]
[ECO "C47"]
[WhiteElo "2444"]
[BlackElo "2147"]
[Annotator "TA"]
[PlyCount "143"]
[EventDate "2022.12.05"]
[EventType "swiss"]
[EventCountry "ISR"]
[SourceTitle "playchess.com"]
[Source "ChessBase"]
[SourceQuality "1"]
[TimeControl "40/5400+30:1800+30"]

{[%evp 16,143,-2,-10,8,0,10,0,2,-32,-22,-26,0,0,0,0,37,12,20,18,22,10,77,84,104,90,94,104,87,107,110,75,74,83,78,84,160,151,154,147,145,139,140,154,149,104,118,119,110,111,181,181,181,117,117,93,118,88,88,88,88,88,88,88,88,88,88,88,88,88,88,88,88,88,88,88,88,88,88,88,5110,4756,6238,6452,6238,6238,5093,4056,5097,181,4920,181,181,77,77,77,88,88,88,88,88,88,29972,29973,29970,29969,29976,29977,29977,29978,29976,29977,29978,29979,29979,29980,29980,29981,29981,29982,29982,29983,29983,29984,29984,29985,29986,29987,29987,29987]} 1. e4 {[%emt 0:00:03]} e5 {[%emt 0:00:16]} 2. Nf3 {[%emt 0:00:05]} Nc6 {[%emt 0:00:07]} 3. g3 {[%emt 0:00:15]} Nf6 {[%emt 0:02:10]} 4. d3 {[%emt 0:00:10]} Bc5 {[%emt 0:03:41]} 5. Bg2 {[%emt 0:00:06]} d5 {[%emt 0:03:58]} 6. exd5 {[%emt 0:00:06]} Nxd5 {[%emt 0:00:26]} 7. O-O {[%emt 0:00:06]} O-O {[%emt 0:01:22]} 8. Nc3 {[%emt 0:00:51]} Nxc3 {[%emt 0:00:52]} 9. bxc3 {[%emt 0:00:05]} h6 {[%emt 0:07:18] C47: Scotch Four Knights and Four Knights with 4 g3.} 10. Rb1 {[%emt 0:00:36]} Bb6 {[%emt 0:02:56]} 11. Re1 {[%emt 0:09:38]} Qf6 {[%emt 0:03:36] The position is equal.} 12. h3 {[%emt 0:00:29]} (12. Qe2 {with more complications.} Re8 13. Nd2 Bg4 14. Qf1) 12... Bd7 {[%emt 0:06:17] [#]} 13. Be3 $146 {[%emt 0:01:43]} ({Predecessor:} 13. c4 Rfe8 14. Be3 Rad8 15. c5 Ba5 16. Nd2 Bc8 17. Qh5 Nd4 18. Bxd4 exd4 19. Rxe8+ Rxe8 {1-0 (53) Solovjov,S (2457)-Tishin,P (2513) Samara 2002}) 13... Rfe8 {[%emt 0:04:01]} 14. Nd2 {[%emt 0:22:23]} Rad8 {[%emt 0:05:07]} 15. Qh5 {[%emt 0:05:51]} Qf5 {[%emt 0:16:14]} 16. Qh4 {[%emt 0:01:05]} (16. Qxf5 {simplifies} Bxf5 17. c4 Nd4 18. Bxd4 exd4 19. Nb3) 16... Qg6 {[%emt 0:01:35]} 17. Nc4 {[%emt 0:10:35]} f6 {[%emt 0:05:14]} 18. a4 {[%emt 0:03:02][%cal Re3b6]} Be6 {[%emt 0:04:47]} (18... Rb8 $11 {keeps the balance.}) 19. Bxb6 $16 axb6 {[%emt 0:00:30]} 20. a5 $1 Nxa5 {[%emt 0:00:30]} 21. Nxa5 bxa5 {[%emt 0:00:30]} 22. Rxb7 c5 {[%emt 0:00:30][%cal Oc5c4]} 23. Bc6 {Against c4} Rf8 {[%emt 0:00:30][%cal Oc5c4]} 24. Re7 {Inhibits c4.} Bf7 {[%emt 0:00:30][%cal Oc5c4]} 25. Be4 {Against c4. White has more active pieces.} Qg5 {[%emt 0:00:30]} ({Black should play} 25... f5 26. Bg2 c4) 26. Qxg5 hxg5 {[%emt 0:00:30]} 27. Ra1 $36 {[%mdl 2048] Keeping Black busy.} Rfe8 {[%emt 0:00:30]} 28. Rxe8+ Rxe8 {[%emt 0:00:30]} 29. Rxa5 {[%mdl 4096] Endgame KRB-KRB} c4 {[%emt 0:00:30]} 30. Rc5 Be6 {[%emt 0:00:30]} 31. Kg2 (31. dxc4 Bxh3 32. f3 Be6 $14) 31... cxd3 {[%emt 0:00:30]} 32. cxd3 Rc8 {[%emt 0:00:30]} (32... Re7 $16 33. g4 Kf7) 33. Rxc8+ $18 Bxc8 {[%emt 0:00:30] KB-KB} 34. g4 (34. h4 $18) 34... Kf7 $16 {[%emt 0:00:30]} 35. Kf3 Ke7 {[%emt 0:00:30]} 36. Ke3 Kd6 {[%emt 0:00:30]} 37. d4 Ba6 {[%emt 0:00:30]} 38. Bd3 Bb7 {[%emt 0:00:30]} 39. Bf1 Bc8 {[%emt 0:00:30]} 40. c4 {[%cal Bc3c4,Bc4c5][%mdl 32]} exd4+ {[%emt 0:00:30]} 41. Kxd4 Bb7 {[%emt 0:30:30]} 42. c5+ Kc7 {[%emt 0:00:30]} 43. Bd3 Bc6 {[%emt 0:00:30]} 44. Be4 {And now Bxc6 would win.} Bb5 {[%emt 0:00:30]} 45. Bg2 Ba4 {[%emt 0:00:30]} 46. Ke3 {aiming for f4.} Bd7 {[%emt 0:00:30]} 47. Bd5 Ba4 $2 {[%emt 0:00:30][%mdl 8192] [#]} (47... Kd8 $16 48. Ke4 Ke7) 48. f4 $1 $18 gxf4+ {[%emt 0:00:30]} 49. Kxf4 Bc2 {[%emt 0:00:30]} 50. Be4 Bb3 {[%emt 0:00:30]} 51. Kf5 {Kg6 would kill now.} Bf7 {[%emt 0:00:30]} 52. h4 {Strongly threatening g5.} Be8 $2 {[%emt 0:00:30]} (52... Kd7 53. g5 fxg5) 53. Bf3 $2 (53. Bd5 Kd7 54. c6+ Ke7 55. c7 Bd7+ 56. Kg6) 53... Bf7 {[%emt 0:00:30]} 54. h5 (54. Bg2 $18 {has better winning chances.}) 54... Kd7 $16 {[%emt 0:00:30]} 55. Be4 Kc7 {[%emt 0:00:30]} 56. h6 gxh6 {[%emt 0:00:30]} 57. Kxf6 Bc4 {[%emt 0:00:30]} 58. Bf3 {Intending Kg6 and mate.} Bb3 $2 {[%emt 0:00:30][%mdl 8192]} (58... Bb5 $16) 59. Kg6 {White mates.} Be6 {[%emt 0:00:30] [#]} 60. Kh5 $1 (60. Kxh6 Bxg4 61. Bxg4 Kc6 $11) 60... Bd7 {[%emt 0:00:30]} 61. Be4 (61. Kxh6 Bxg4 62. Bxg4 Kc6 $11) 61... Be6 {[%emt 0:00:30]} 62. Bf5 (62. Kxh6 Bxg4 63. Kh7 Bh5 $11) 62... Bd5 {[%emt 0:00:30]} 63. Kxh6 Kc6 {[%emt 0:00:30]} 64. g5 {[%cal Bg4g5,Bg5g6,Bg6g7][%mdl 32]} Kxc5 {[%emt 0:00:30]} 65. g6 Kd6 {[%emt 0:00:30]} 66. Kh7 Ke5 {[%emt 0:00:30]} 67. Bb1 Kf6 {[%emt 0:00:30]} 68. g7 Bc4 {[%emt 0:00:30]} 69. Kh8 ({Worse is} 69. g8=Q Bxg8+ $11) 69... Bf7 {[%emt 0:00:30]} 70. Bh7 ({Inferior is} 70. g8=R Bxg8 $11) 70... Bb3 {[%emt 0:00:30]} 71. Bg8 ({Weaker is} 71. g8=B Bxg8 $11) 71... Bc2 {[%emt 0:00:30]} 72. Ba2 {Weighted Error Value: White=0.23 (precise) /Black=0.25 (precise)} 1-0

[Event "Israeli Championship 2022"]
[Site "Yosiah Arad"]
[Date "2022.12.05"]
[Round "1.14"]
[White "Sitbon, Itay"]
[Black "Bronstein, Or"]
[Result "1/2-1/2"]
[ECO "E07"]
[WhiteElo "2092"]
[BlackElo "2442"]
[Annotator "TA"]
[PlyCount "69"]
[EventDate "2022.12.05"]
[EventType "swiss"]
[EventCountry "ISR"]
[SourceTitle "playchess.com"]
[Source "ChessBase"]
[SourceQuality "1"]
[TimeControl "40/5400+30:1800+30"]

{[%evp 21,69,0,2,-36,-14,-7,0,0,0,0,0,0,0,0,0,0,0,-4,-7,-6,-10,0,2,2,10,0,0,0,0,0,0,0,0,0,3,0,0,-3,-3,-4,-2,-8,-4,-6,-3,-10,0,0,0,-8]} 1. d4 {[%emt 0:00:01]} Nf6 {[%emt 0:00:19]} 2. c4 {[%emt 0:00:05]} e6 {[%emt 0:00:24]} 3. Nf3 {[%emt 0:00:07]} d5 {[%emt 0:00:53]} 4. g3 {[%emt 0:00:13]} Bb4+ {[%emt 0:00:23]} 5. Bd2 {[%emt 0:00:12]} Be7 {[%emt 0:00:09]} 6. Bg2 {[%emt 0:00:10]} O-O {[%emt 0:00:10]} 7. O-O {[%emt 0:00:25]} c6 {[%emt 0:00:10]} 8. Bf4 {[%emt 0:07:40]} Nbd7 {[%emt 0:04:30]} 9. Nc3 {[%emt 0:07:02]} dxc4 {[%emt 0:01:01]} 10. e4 {[%emt 0:01:38]} Re8 {[%emt 0:04:40]} 11. a4 {[%emt 0:15:02] The old main line.} a5 {[%emt 0:00:44] [#]} 12. d5 $146 {[%emt 0:05:04] E07: Closed Catalan: Main Line (5 Nf3 0-0 6 0-0 Nbd7).} ({Predecessor (3):} 12. Re1 Bb4 13. Qe2 b5 14. Bg5 h6 15. Bh4 Qb6 16. g4 e5 17. Bxf6 Nxf6 18. Nxe5 Rxe5 19. dxe5 Nxg4 20. axb5 Nxf2 {1-0 (38) Salem,A (2677)-Deac,B (2700) Chess.com INT 2022}) 12... exd5 {[%emt 0:37:23]} 13. exd5 {[%emt 0:00:13] The position is equal.} Nxd5 {[%emt 0:11:46]} (13... Bf8 {simplifies} 14. dxc6 bxc6 15. Nd4 Qb6) 14. Nxd5 {[%emt 0:01:31]} cxd5 {[%emt 0:00:01]} 15. Qxd5 {[%emt 0:05:03][%cal Oa1e1]} Nc5 {[%emt 0:01:16]} 16. Qxc4 {[%emt 0:01:39]} Be6 {[%emt 0:00:17]} 17. Qb5 {[%emt 0:02:32]} Bd7 {[%emt 0:01:27]} 18. Qc4 {[%emt 0:00:34]} Be6 {[%emt 0:01:05][%cal Bd7e6,Be6c4,Bc4d3][%mdl 32]} 19. Qb5 {[%emt 0:04:14]} Qd3 {[%emt 0:11:52]} 20. Qxd3 Nxd3 {[%emt 0:00:30]} 21. Be3 Bf6 {[%emt 0:00:30][%cal Oa8d8]} 22. Nd4 Bc4 {[%emt 0:00:30][%cal Oa8d8]} 23. Bxb7 Rab8 {[%emt 0:00:30]} 24. Bg2 Rxb2 {[%emt 0:00:30][%cal Od3f2]} 25. Rfb1 h5 {[%emt 0:00:30]} 26. Rxb2 Nxb2 {[%emt 0:00:30]} 27. Rc1 Bd3 {[%emt 0:00:30]} 28. Nc6 Nxa4 {[%emt 0:00:30]} 29. Nxa5 Nc3 {[%emt 0:00:30] [#] aiming for ...Ne2+.} 30. Kh1 g5 {[%emt 0:00:30][%cal Bg7g5,Bg5g4][%mdl 32]} 31. h3 {[%cal Oe3g5]} Ne2 {[%emt 0:00:30]} 32. Rc6 Kg7 {[%emt 0:00:30][%cal Oe2g3] White must now prevent ...Nxg3+!} 33. Kh2 g4 {[%emt 0:00:30]} 34. Rd6 Rd8 {[%emt 0:00:30]} 35. Nb7 {An interesting draw.   Weighted Error Value: White=0.03 (flawless) /Black=0.03 (flawless)} 1/2-1/2

[Event "Israeli Championship 2022"]
[Site "Yosiah Arad"]
[Date "2022.12.05"]
[Round "1.15"]
[White "Sokolovsky, Yahli"]
[Black "Uritsky, Yonathan"]
[Result "1-0"]
[ECO "B10"]
[WhiteElo "2414"]
[BlackElo "2216"]
[Annotator "TA"]
[PlyCount "53"]
[EventDate "2022.12.05"]
[EventType "swiss"]
[EventCountry "ISR"]
[SourceTitle "playchess.com"]
[Source "ChessBase"]
[SourceQuality "1"]
[TimeControl "40/5400+30:1800+30"]

{[%evp 9,53,14,27,18,4,-50,-48,-61,-43,-59,-49,-49,-39,-108,-66,-69,-67,-70,-70,-71,-69,-66,-38,-67,-41,-43,-64,-70,-28,-39,-29,-69,-31,-25,10,0,0,0,610,610,610,610,608,602,892,856]} 1. e4 {[%emt 0:00:04]} c6 {[%emt 0:00:15][%cal Bc7c6,Bc6c5,Bc5b4][%mdl 32]} 2. Nf3 {[%emt 0:00:08]} d5 {[%emt 0:00:27]} 3. d3 {[%emt 0:00:20]} g6 {[%emt 0:01:56]} 4. e5 {[%emt 0:08:00]} d4 {[%emt 0:04:17]} 5. c3 {[%emt 0:06:00]} c5 {[%emt 0:03:59] [#]} 6. b4 $146 {[%emt 0:07:13] B10: Caro-Kann: 2 d3 and 2 c4.} ({Predecessor:} 6. cxd4 cxd4 7. Bf4 Nc6 8. Nbd2 Bh6 9. Bg3 Bg7 10. Be2 Nh6 11. O-O Nf5 12. Bf4 {1-0 (62) Giri,A (2769)-Mamedyarov,S (2772) Moscow 2019}) 6... cxb4 {[%emt 0:07:29]} 7. cxd4 {[%emt 0:05:40]} ({White should play} 7. Qa4+ $11 Bd7 8. Qxb4) 7... Nc6 $15 {[%emt 0:01:45][%cal Og8h6]} 8. Bb2 {[%emt 0:01:45][%cal Oe5e6] Black is slightly better.} Be6 {[%emt 0:03:02]} 9. Nbd2 {[%emt 0:01:41]} Bg7 {[%emt 0:03:52]} 10. Be2 {[%emt 0:02:42]} Nh6 {[%emt 0:01:32][%cal Bg8h6,Bh6f5,Bf5d4,Bd4c6][%mdl 32]} 11. Ng5 {[%emt 0:11:11]} ({White should try} 11. a3 $15) 11... Nxd4 {[%emt 0:05:36]} 12. Nxe6 {[%emt 0:00:49]} fxe6 {[%emt 0:00:39]} 13. Nf3 {[%emt 0:04:15]} Nhf5 {[%emt 0:03:48]} 14. O-O {[%emt 0:07:45]} O-O {[%emt 0:01:48]} 15. Rc1 {[%emt 0:01:07]} Qb6 {[%emt 0:08:31]} 16. Rc4 {[%emt 0:10:04][%cal Rf3d4]} Rad8 {[%emt 0:02:31]} 17. Nxd4 {[%emt 0:01:02]} Nxd4 {[%emt 0:02:55]} 18. Bg4 {[%emt 0:00:03]} Kh8 {[%emt 0:04:05]} 19. Qd2 {[%emt 0:04:36]} Nc6 20. h4 {[%emt 0:00:30]} Qa6 {...Qxc4 is the strong threat.} (20... Bxe5 $2 21. Rxc6 $1 {[%mdl 512]} (21. Bxe6 Bxb2 22. Qxb2+ Rf6 $17) 21... Qxc6 22. Bxe5+ Kg8 23. Qh6 $18) (20... b3 {keeps more tension.} 21. axb3 Qxb3 22. Bxe6 Bxe5 23. d4 Qb6) 21. Qe2 {[%emt 0:00:30]} Qb5 {[%cal Rc6e5]} (21... Qxa2 {with more complications.} 22. Ra1 Qb3 23. d4 Rf5) 22. Bxe6 {[%emt 0:00:30]} Nxe5 23. Rc7 {[%emt 0:00:30] Threatens to win with Bc4.} Qxd3 {[%mdl 8192] [#]} (23... Rxd3 $2 24. Rfc1 Rd5 25. Qxb5 Rxb5 26. Rc8 $18 (26. Rxe7 Nf3+ 27. gxf3 Bxb2 $11)) (23... Nc6 $11) 24. Qxe5 $1 $18 {[%emt 0:00:30] White is clearly winning.} Bxe5 25. Bxe5+ {[%emt 0:00:30] A strong pair of Bishops.} Rf6 {Strongly threatening ...Qe4.} 26. Rxe7 {[%emt 0:00:30][%cal Re5f6]} Rdf8 {[%cal Od3e4]} 27. Rc1 {[%emt 0:00:30] Weighted Error Value: White=0.13 (very precise) /Black=0.42} ({Worse is} 27. Bxf6+ Rxf6 28. Rc1 Rf8 $11) 1-0